bitfinex/quotes_SOLUSD_20230905
["timestamp","ask_amount","ask_price","bid_price","bid_amount"]
[1693914279122,32.11,19.48,19.474,0.49999999]
[1693914279323,32.11,19.48,19.474,8.01]
[1693914287328,90.8215,19.486,19.474,8.01]
[1693914287513,90.8215,19.486,19.475,0.49999999]
[1693914287823,98.8265,19.486,19.477,8.009]
[1693914288630,90.8215,19.486,19.477,8.009]
[1693914289021,98.8265,19.486,19.477,8.009]
[1693914295636,98.8265,19.486,19.477,8.009]
[1693914305030,90.8215,19.486,19.477,8.009]
[1693914307641,98.8265,19.486,19.477,8.009]
[1693914308341,90.8215,19.486,19.477,8.009]
[1693914308640,98.8265,19.486,19.477,8.009]
[1693914314941,98.8265,19.486,19.478,0.49999999]
[1693914315439,98.8265,19.486,19.478,8.008]
[1693914315842,90.8215,19.486,19.478,8.008]
[1693914316030,32.11,19.49,19.479,20.0]
[1693914316237,32.11,19.49,19.482,90.338]
[1693914317238,32.11,19.49,19.482,33.876]
[1693914322836,32.11,19.49,19.483,0.49999999]
[1693914323037,32.11,19.49,19.485,8.006]
[1693914338844,98.5588,19.495,19.485,8.006]
[1693914339452,32.11,19.49,19.485,8.006]
[1693914340961,98.5588,19.495,19.485,8.006]
[1693914341153,98.5588,19.495,19.486,20.49999999]
[1693914341352,98.5588,19.495,19.488,33.865]
[1693914341752,8.0,19.499,19.489,20.0]
[1693914341957,96.0385,19.498,19.491,8.003]
[1693914373776,32.11,19.5,19.491,8.003]
[1693914374080,1.99999999,19.499,19.491,8.003]
[1693914377079,32.11,19.5,19.491,8.003]
[1693914377280,1.99999999,19.499,19.491,8.003]
[1693914398197,32.11,19.5,19.491,8.003]
[1693914399997,1.99999999,19.499,19.491,8.003]
[1693914400903,32.11,19.5,19.491,8.003]
[1693914401892,1.99999999,19.499,19.491,8.003]
[1693914402293,32.11,19.5,19.491,8.003]
[1693914406496,1.99999999,19.505,19.491,8.003]
[1693914406710,1.99999999,19.508,19.492,20.0]
[1693914406891,32.11,19.51,19.492,20.0]
[1693914406892,1.99999999,19.509,19.496,192.338]
[1693914407099,1.99999999,19.509,19.497,20.0]
[1693914407298,1.99999999,19.509,19.5,90.252]
[1693914408397,32.11,19.51,19.5,90.252]
[1693914408710,1.99999999,19.509,19.5,90.252]
[1693914409696,32.11,19.51,19.5,90.252]
[1693914409897,1.99999999,19.509,19.5,90.252]
[1693914411092,1.99999999,19.509,19.497,20.0]
[1693914411408,32.11,19.51,19.5,90.252]
[1693914411604,1.99999999,19.509,19.5,90.252]
[1693914411910,32.11,19.51,19.5,90.252]
[1693914412608,1.99999999,19.509,19.5,90.252]
[1693914412811,32.11,19.51,19.5,90.252]
[1693914413808,1.99999999,19.509,19.5,90.252]
[1693914420599,1.99999999,19.509,19.5,7.999]
[1693914420805,9.99599999,19.509,19.5,7.999]
[1693914421008,9.99599999,19.509,19.496,15.75499743]
[1693914421009,9.99599999,19.509,19.498,8.0]
[1693914421216,9.99599999,19.509,19.499,20.0]
[1693914421423,9.99599999,19.509,19.499,28.0]
[1693914435821,1.99999999,19.509,19.499,28.0]
[1693914460050,1.99999999,19.509,19.5,55.0]
[1693914460242,32.11,19.51,19.502,33.84]
[1693914460549,1.99999999,19.509,19.503,55.0]
[1693914460846,32.11,19.51,19.504,7.998]
[1693914463644,1.99999999,19.509,19.504,7.998]
[1693914463844,32.11,19.51,19.504,7.998]
[1693914464052,1.99999999,19.509,19.504,7.998]
[1693914464556,32.11,19.51,19.504,7.998]
[1693914464766,1.99999999,19.509,19.504,7.998]
[1693914465054,32.11,19.51,19.504,7.998]
[1693914465639,1.99999999,19.509,19.504,7.998]
[1693914468149,32.11,19.51,19.504,7.998]
[1693914469654,1.99999999,19.515,19.504,7.998]
[1693914472351,1.99999999,19.515,19.505,20.0]
[1693914472652,1.99999999,19.515,19.508,33.831]
[1693914472857,1.99999999,19.515,19.509,20.0]
[1693914473057,1.99999999,19.519,19.51,7.995]
[1693914474052,1.99999999,19.519,19.51,90.208]
[1693914475767,1.99999999,19.519,19.51,33.827]
[1693914484766,1.99999999,19.525,19.51,33.827]
[1693914486553,9.98999999,19.525,19.51,33.827]
[1693914491683,32.11,19.52,19.51,33.827]
[1693914491866,1.99999999,19.519,19.51,7.995]
[1693914500178,1.99999999,19.524,19.51,7.995]
[1693914502488,1.99999999,19.525,19.51,7.995]
[1693914502884,1.99999999,19.526,19.51,7.995]
[1693914503092,1.99999999,19.526,19.51,40.105]
[1693914503295,40.098,19.53,19.51,40.105]
[1693914503296,1.99999999,19.529,19.511,20.0]
[1693914503584,1.99999999,19.529,19.516,90.179]
[1693914503784,1.99999999,19.529,19.52,192.102]
[1693914504183,1.99999999,19.529,19.52,7.991]
[1693914504389,9.98799999,19.529,19.52,7.991]
[1693914505493,1.99999999,19.529,19.52,7.991]
[1693914512596,9.98799999,19.529,19.52,7.991]
[1693914513894,1.99999999,19.529,19.52,7.991]
[1693914526500,1.99999999,19.529,19.521,55.0]
[1693914526805,1.99999999,19.529,19.523,33.805]
[1693914527594,32.11,19.53,19.523,33.805]
[1693914528105,2.46245893,19.535,19.523,33.805]
[1693914528507,10.44745893,19.535,19.523,33.805]
[1693914529608,10.44745893,19.535,19.527,7.988]
[1693914530502,2.46245893,19.535,19.527,7.988]
[1693914535716,10.44845893,19.535,19.527,7.988]
[1693914536101,2.46245893,19.535,19.527,7.988]
[1693914540612,10.44745893,19.535,19.527,7.988]
[1693914547016,10.44745893,19.535,19.525,7.989]
[1693914547928,32.11,19.53,19.517,76.359]
[1693914548135,10.45045893,19.529,19.52,7.991]
[1693914549015,2.46245893,19.529,19.52,7.991]
[1693914549224,2.46245893,19.529,19.52,64.343]
[1693914549426,32.11,19.53,19.52,64.343]
[1693914549730,2.51720664,19.535,19.52,64.343]
[1693914549932,57.51720664,19.535,19.52,64.343]
[1693914550325,7.986,19.534,19.52,64.343]
[1693914550524,4.31104783,19.533,19.52,64.343]
[1693914550720,7.985,19.536,19.52,64.343]
[1693914550920,4.44461037,19.535,19.52,64.343]
[1693914552833,4.44461037,19.535,19.52,96.453]
[1693914553020,4.44461037,19.537,19.52,96.453]
[1693914553629,12.42861037,19.537,19.52,96.453]
[1693914554230,4.44461037,19.537,19.52,96.453]
[1693914554728,12.42861037,19.537,19.52,96.453]
[1693914556741,12.42861037,19.537,19.52,64.343]
[1693914557740,12.42861037,19.537,19.52,96.453]
[1693914558337,12.42861037,19.537,19.52,111.45453687]
[1693914559941,4.44461037,19.537,19.52,111.45453687]
[1693914560340,12.42961037,19.537,19.52,111.45453687]
[1693914561325,12.42961037,19.537,19.52,79.34453687]
[1693914561545,4.44461037,19.537,19.52,120.30715847]
[1693914561842,7.984,19.537,19.52,120.30715847]
[1693914562031,4.44461037,19.536,19.52,120.30715847]
[1693914562352,4.44461037,19.533,19.52,105.3056216]
[1693914562641,32.11,19.53,19.52,7.991]
[1693914562833,40.098,19.53,19.52,7.991]
[1693914563226,1.98018318,19.529,19.52,7.991]
[1693914564239,40.098,19.53,19.52,7.991]
[1693914564744,1.99999999,19.529,19.52,7.991]
[1693914565042,9.98799999,19.529,19.52,7.991]
[1693914565247,7.988,19.529,19.52,7.991]
[1693914565427,32.11,19.53,19.52,7.991]
[1693914565833,2.03540113,19.529,19.52,7.991]
[1693914569452,10.02340113,19.529,19.516,25.824]
[1693914569745,10.02340113,19.529,19.515,15.22284835]
[1693914569947,10.02440113,19.527,19.519,7.991]
[1693914570335,2.03540113,19.527,19.519,7.991]
[1693914570650,7.989,19.527,19.519,7.991]
[1693914570954,2.03540113,19.526,19.519,7.991]
[1693914571147,10.02440113,19.526,19.519,7.991]
[1693914571452,2.03540113,19.526,19.519,7.991]
[1693914571650,2.03540113,19.527,19.519,7.991]
[1693914576245,2.03540113,19.529,19.519,33.811]
[1693914580954,2.03540113,19.529,19.515,15.22284835]
[1693914581145,85.02340113,19.529,19.512,40.48770491]
[1693914581346,32.11,19.52,19.504,52.93272939]
[1693914581546,32.11,19.52,19.515,7.993]
[1693914581843,7.99,19.523,19.515,7.993]
[1693914582244,7.99,19.524,19.515,7.993]
[1693914582546,1.99999999,19.523,19.515,7.993]
[1693914582745,25.811,19.528,19.515,7.993]
[1693914582746,1.99999999,19.526,19.515,7.993]
[1693914582946,1.99999999,19.527,19.515,7.993]
[1693914583146,1.99999999,19.528,19.515,7.993]
[1693914583650,7.989,19.525,19.515,7.993]
[1693914583849,1.99999999,19.524,19.515,7.993]
[1693914584252,7.99,19.524,19.515,7.993]
[1693914588569,1.99999999,19.527,19.515,7.993]
[1693914588867,1.99999999,19.528,19.515,7.993]
[1693914589458,1.99999999,19.526,19.515,7.993]
[1693914589657,7.989,19.525,19.515,7.993]
[1693914590460,7.99,19.524,19.515,7.993]
[1693914591569,7.989,19.525,19.515,7.993]
[1693914591770,1.99999999,19.524,19.515,7.993]
[1693914592468,20.0,19.529,19.515,7.993]
[1693914592469,1.99999999,19.526,19.515,7.993]
[1693914592661,9.98899999,19.526,19.515,7.993]
[1693914593364,1.99999999,19.526,19.515,7.993]
[1693914593663,1.99999999,19.528,19.515,7.993]
[1693914593861,56.99999999,19.528,19.515,7.993]
[1693914594058,1.99999999,19.528,19.515,7.993]
[1693914594259,56.99999999,19.528,19.515,7.993]
[1693914594764,1.99999999,19.526,19.515,7.993]
[1693914594964,7.989,19.525,19.515,7.993]
[1693914595165,1.99999999,19.524,19.515,7.993]
[1693914596676,9.98999999,19.524,19.515,7.993]
[1693914596875,7.99,19.524,19.515,7.993]
[1693914597375,1.99999999,19.523,19.515,7.993]
[1693914597672,7.99,19.524,19.515,7.993]
[1693914597873,1.99999999,19.523,19.515,7.993]
[1693914598973,1.99999999,19.528,19.515,7.993]
[1693914599173,56.99999999,19.528,19.515,7.993]
[1693914599971,7.989,19.526,19.515,7.993]
[1693914600171,1.99999999,19.525,19.515,7.993]
[1693914600374,7.99,19.524,19.515,7.993]
[1693914603183,7.989,19.526,19.515,7.993]
[1693914603383,1.99999999,19.525,19.515,7.993]
[1693914604275,7.989,19.525,19.515,7.993]
[1693914606685,1.99999999,19.524,19.515,7.993]
[1693914606883,9.98999999,19.524,19.515,7.993]
[1693914607083,7.99,19.524,19.515,7.993]
[1693914607287,7.989,19.526,19.515,7.993]
[1693914607490,1.99999999,19.525,19.515,7.993]
[1693914608677,9.98899999,19.525,19.515,7.993]
[1693914617702,1.99999999,19.525,19.515,7.993]
[1693914617901,1.99999999,19.526,19.515,7.993]
[1693914619207,7.989,19.526,19.515,7.993]
[1693914619392,1.99999999,19.525,19.515,7.993]
[1693914619592,9.98899999,19.525,19.515,7.993]
[1693914622000,9.98899999,19.525,19.515,49.09955736]
[1693914622602,1.99999999,19.525,19.515,49.09955736]
[1693914622902,1.99999999,19.526,19.515,49.09955736]
[1693914623904,9.98899999,19.526,19.515,49.09955736]
[1693914631697,1.99999999,19.529,19.519,7.992]
[1693914632107,7.987,19.532,19.519,7.992]
[1693914632411,25.798,19.537,19.519,7.992]
[1693914632412,11.38412681,19.533,19.519,7.992]
[1693914632998,3.39812681,19.533,19.519,7.992]
[1693914633199,4.44461037,19.534,19.519,7.992]
[1693914633412,12.43061037,19.534,19.519,7.992]
[1693914637601,4.44461037,19.534,19.519,7.992]
[1693914637798,4.44461037,19.535,19.519,7.992]
[1693914639512,12.42961037,19.535,19.519,7.992]
[1693914639818,12.42961037,19.535,19.519,48.03296261]
[1693914640214,4.44461037,19.535,19.519,48.03296261]
[1693914640514,4.44461037,19.536,19.519,48.03296261]
[1693914640916,4.44461037,19.536,19.519,63.09747873]
[1693914659319,4.44461037,19.537,19.519,121.77699228]
[1693914661436,4.44461037,19.537,19.519,147.33019815]
[1693914662625,4.44461037,19.538,19.52,116.34271942]
[1693914662928,4.44461037,19.538,19.525,90.137]
[1693914663128,12.42861037,19.539,19.526,20.0]
[1693914663329,12.42861037,19.539,19.529,7.987]
[1693914665633,4.44461037,19.539,19.529,7.987]
[1693914668823,4.44461037,19.539,19.529,64.313]
[1693914669330,4.44461037,19.539,19.529,7.987]
[1693914685335,4.44461037,19.544,19.529,7.987]
[1693914687249,12.42661037,19.544,19.529,7.987]
[1693914693852,4.44461037,19.539,19.529,7.987]
[1693914700464,4.44461037,19.539,19.529,64.313]
[1693914710473,4.44461037,19.539,19.529,7.987]
[1693914715666,4.44461037,19.543,19.529,7.987]
[1693914716675,4.44461037,19.544,19.529,7.987]
[1693914720875,12.42661037,19.544,19.529,7.987]
[1693914721463,4.44461037,19.544,19.529,7.987]
[1693914721676,12.42661037,19.544,19.529,7.987]
[1693914722362,4.44461037,19.544,19.529,7.987]
[1693914722875,12.42661037,19.544,19.529,7.987]
[1693914723678,4.44461037,19.544,19.529,7.987]
[1693914723980,12.42561037,19.544,19.529,7.987]
[1693914724678,4.44461037,19.544,19.529,7.987]
[1693914731773,4.44461037,19.544,19.53,32.11]
[1693914731984,4.44461037,19.544,19.534,33.785]
[1693914735481,4.44461037,19.544,19.534,7.985]
[1693914735686,12.42661037,19.544,19.534,7.985]
[1693914735882,4.44461037,19.544,19.534,7.985]
[1693914746195,4.44461037,19.544,19.534,48.14065795]
[1693914749301,4.44461037,19.544,19.535,20.0]
[1693914749595,4.44461037,19.548,19.537,90.081]
[1693914749783,4.44461037,19.548,19.538,20.0]
[1693914750002,4.44461037,19.548,19.541,7.983]
[1693914750386,4.44461037,19.548,19.54,7.983]
[1693914750599,12.42461037,19.548,19.538,7.984]
[1693914750905,12.42461037,19.548,19.536,7.984]
[1693914751691,108.43191037,19.548,19.536,7.984]
[1693914757109,108.43191037,19.548,19.537,55.0]
[1693914757307,108.43191037,19.548,19.539,7.983]
[1693914758299,108.43191037,19.548,19.537,62.984]
[1693914760499,108.43191037,19.548,19.537,7.984]
[1693914765423,55.0,19.547,19.536,7.984]
[1693914765609,7.981,19.545,19.536,7.984]
[1693914765813,4.44461037,19.544,19.536,7.984]
[1693914766216,7.981,19.545,19.536,7.984]
[1693914766407,4.44461037,19.544,19.536,7.984]
[1693914771513,4.44461037,19.546,19.536,7.984]
[1693914771712,12.42561037,19.546,19.536,7.984]
[1693914775323,4.44461037,19.546,19.536,7.984]
[1693914775514,7.981,19.546,19.536,7.984]
[1693914775714,4.44461037,19.545,19.536,7.984]
[1693914776019,12.42561037,19.545,19.536,7.984]
[1693914777218,4.44461037,19.545,19.536,7.984]
[1693914777418,4.44461037,19.546,19.536,7.984]
[1693914778228,12.42561037,19.546,19.536,7.984]
[1693914784821,4.44461037,19.546,19.536,7.984]
[1693914785136,4.44461037,19.547,19.536,7.984]
[1693914785339,12.42461037,19.547,19.536,7.984]
[1693914789235,4.44461037,19.547,19.536,7.984]
[1693914790231,4.44461037,19.547,19.54,7.983]
[1693914790434,4.44461037,19.548,19.54,7.983]
[1693914791940,4.44461037,19.549,19.54,7.983]
[1693914795428,4.44461037,19.551,19.54,40.093]
[1693914798040,12.42361037,19.551,19.54,7.983]
[1693914799646,32.11,19.55,19.54,7.983]
[1693914799846,4.44461037,19.549,19.54,7.983]
[1693914800633,12.42461037,19.549,19.54,7.983]
[1693914800841,7.98,19.549,19.54,7.983]
[1693914801448,7.979,19.55,19.54,7.983]
[1693914801643,4.44461037,19.549,19.54,7.983]
[1693914802229,12.42361037,19.549,19.54,7.983]
[1693914802433,20.0,19.548,19.538,7.984]
[1693914802635,7.981,19.545,19.538,7.984]
[1693914802940,12.42661037,19.544,19.536,7.985]
[1693914803141,4.44461037,19.544,19.536,7.985]
[1693914805043,7.981,19.545,19.536,7.985]
[1693914805934,4.44461037,19.544,19.536,7.985]
[1693914807650,4.44461037,19.546,19.536,7.985]
[1693914808050,12.42461037,19.549,19.537,20.0]
[1693914808258,12.42461037,19.549,19.54,7.983]
[1693914808443,4.44461037,19.549,19.54,7.983]
[1693914808756,12.42461037,19.549,19.54,7.983]
[1693914824369,12.42461037,19.549,19.537,40.39713407]
[1693914824669,12.42461037,19.549,19.538,27.984]
[1693914829955,38.20561037,19.549,19.538,27.984]
[1693914830160,12.42461037,19.549,19.538,27.984]
[1693914833674,12.42461037,19.549,19.534,40.15565795]
[1693914833859,20.0,19.548,19.536,7.985]
[1693914834063,7.981,19.545,19.536,7.985]
[1693914834368,4.44461037,19.544,19.536,7.985]
[1693914835672,4.44461037,19.547,19.536,7.985]
[1693914836177,7.981,19.546,19.536,7.985]
[1693914836365,4.44461037,19.545,19.536,7.985]
[1693914836966,12.42561037,19.545,19.536,7.985]
[1693914837480,4.44461037,19.545,19.536,7.985]
[1693914837676,4.44461037,19.547,19.536,7.985]
[1693914837879,59.44461037,19.548,19.536,7.985]
[1693914838277,67.42461037,19.548,19.536,7.985]
[1693914841481,12.42461037,19.548,19.536,7.985]
[1693914841684,4.44461037,19.548,19.536,7.985]
[1693914844272,12.42461037,19.548,19.536,7.985]
[1693914857295,4.44461037,19.548,19.537,20.0]
[1693914857490,4.44461037,19.551,19.54,33.775]
[1693914857686,4.44461037,19.551,19.54,65.885]
[1693914858900,4.44461037,19.553,19.54,65.885]
[1693914859501,12.42261037,19.553,19.54,65.885]
[1693914862106,4.44461037,19.553,19.541,55.0]
[1693914862296,4.44461037,19.553,19.544,33.768]
[1693914864505,12.42261037,19.553,19.544,7.981]
[1693914868504,12.42261037,19.553,19.542,7.982]
[1693914869703,38.19861037,19.553,19.542,7.982]
[1693914873321,12.42261037,19.553,19.542,7.982]
[1693914881548,55.0,19.552,19.542,7.982]
[1693914881845,4.44461037,19.551,19.542,7.982]
[1693914882048,12.42361037,19.551,19.542,7.982]
[1693914882236,55.0,19.55,19.542,7.982]
[1693914882437,4.44461037,19.549,19.542,7.982]
[1693914891846,4.44461037,19.553,19.542,7.982]
[1693914892047,59.44461037,19.553,19.542,7.982]
[1693914892242,4.44461037,19.553,19.542,7.982]
[1693914892444,4.44461037,19.555,19.542,7.982]
[1693914893443,12.42161037,19.555,19.542,7.982]
[1693914895958,55.0,19.554,19.542,7.982]
[1693914896256,4.44461037,19.553,19.542,7.982]
[1693914897961,12.42261037,19.553,19.542,7.982]
[1693914898359,4.44461037,19.553,19.542,7.982]
[1693914901859,12.42261037,19.553,19.542,7.982]
[1693914902049,4.44461037,19.551,19.542,7.982]
[1693914902445,4.44461037,19.552,19.542,7.982]
[1693914902650,4.44461037,19.556,19.542,7.982]
[1693914902948,59.44461037,19.556,19.542,7.982]
[1693914903460,7.978,19.554,19.542,7.982]
[1693914903759,4.44461037,19.553,19.542,7.982]
[1693914904655,12.42161037,19.555,19.542,7.982]
[1693914909064,4.44461037,19.555,19.542,7.982]
[1693914909261,4.44461037,19.556,19.542,7.982]
[1693914910962,12.42161037,19.556,19.542,7.982]
[1693914913371,4.44461037,19.559,19.55,32.11]
[1693914913666,4.44461037,19.562,19.552,33.754]
[1693914915170,4.44461037,19.562,19.552,7.978]
[1693914915758,4.44461037,19.562,19.552,33.755]
[1693914918360,231.38677358,19.563,19.552,33.755]
[1693914918768,2.03215542,19.562,19.552,33.755]
[1693914919276,231.38677358,19.563,19.552,33.755]
[1693914919869,167.93877359,19.563,19.553,83.55999478]
[1693914920071,15.32685421,19.572,19.556,191.756]
[1693914920274,15.32685421,19.572,19.56,32.11]
[1693914920467,7.968,19.577,19.56,32.11]
[1693914920468,7.968,19.577,19.563,33.735]
[1693914920667,4.44461037,19.576,19.563,33.735]
[1693914920871,7.969,19.576,19.563,33.735]
[1693914921772,7.968,19.578,19.563,33.735]
[1693914921966,4.44461037,19.577,19.563,33.735]
[1693914922166,12.41261037,19.577,19.563,33.735]
[1693914923061,4.44461037,19.575,19.563,33.735]
[1693914923368,7.968,19.578,19.563,33.735]
[1693914923572,2.2384548,19.577,19.563,33.735]
[1693914923781,22.29983686,19.579,19.563,33.735]
[1693914923966,30.26683686,19.579,19.563,33.735]
[1693914924273,27.967,19.579,19.563,33.735]
[1693914924663,10.40811311,19.578,19.563,33.735]
[1693914924864,55.0,19.577,19.563,33.735]
[1693914925362,62.968,19.577,19.563,33.735]
[1693914925676,2.10898409,19.576,19.563,33.735]
[1693914925877,62.968,19.577,19.563,33.735]
[1693914925878,55.0,19.577,19.563,33.735]
[1693914926073,62.968,19.577,19.563,33.735]
[1693914926276,88.712,19.577,19.563,7.973]
[1693914926480,88.712,19.577,19.557,20.0]
[1693914926481,4.44461037,19.576,19.561,7.974]
[1693914926678,7.97,19.572,19.561,7.974]
[1693914926881,55.0,19.571,19.561,7.974]
[1693914927071,62.971,19.571,19.561,7.974]
[1693914927571,7.97,19.573,19.561,7.974]
[1693914927875,99.2897,19.574,19.562,0.49999999]
[1693914928076,99.2897,19.574,19.562,8.47399999]
[1693914928375,99.2897,19.574,19.562,7.974]
[1693914928575,2.54620281,19.573,19.558,48.8348957]
[1693914928777,2.54620281,19.573,19.56,7.975]
[1693914928778,7.971,19.569,19.56,7.975]
[1693914928981,7.971,19.571,19.56,7.975]
[1693914929281,7.971,19.571,19.56,40.085]
[1693914929477,7.971,19.571,19.552,92.07392637]
[1693914929478,110.76602812,19.57,19.556,49.64162167]
[1693914929679,110.76602812,19.57,19.556,7.977]
[1693914929680,7.973,19.566,19.556,7.977]
[1693914929871,58.65602812,19.565,19.554,7.977]
[1693914930084,66.62902812,19.565,19.554,7.977]
[1693914930373,62.973,19.565,19.554,7.977]
[1693914931377,2.52456479,19.564,19.554,7.977]
[1693914931582,10.49756479,19.564,19.554,7.977]
[1693914931765,7.973,19.564,19.554,7.977]
[1693914932083,55.0,19.563,19.554,33.751]
[1693914932490,97.2504,19.565,19.554,33.751]
[1693914933779,2.69658797,19.564,19.554,33.751]
[1693914933977,97.2504,19.565,19.554,33.751]
[1693914934370,7.972,19.568,19.554,33.751]
[1693914934582,58.54513487,19.567,19.554,33.751]
[1693914934778,66.51713487,19.567,19.554,33.751]
[1693914935171,99.6059,19.566,19.554,33.751]
[1693914935373,3.54513487,19.565,19.554,33.751]
[1693914936268,11.51813487,19.565,19.554,33.751]
[1693914936465,11.51813487,19.565,19.554,7.977]
[1693914937274,7.973,19.565,19.554,7.977]
[1693914938881,99.6059,19.566,19.554,7.977]
[1693914939083,2.56578632,19.565,19.554,7.977]
[1693914939282,99.6059,19.566,19.554,7.977]
[1693914939780,2.56334905,19.565,19.554,7.977]
[1693914940181,99.6059,19.566,19.554,7.977]
[1693914940380,107.5789,19.566,19.554,7.977]
[1693914943076,2.56665486,19.565,19.554,7.977]
[1693914943275,99.6059,19.566,19.552,7.978]
[1693914943476,62.973,19.565,19.552,7.978]
[1693914943874,7.975,19.561,19.552,7.978]
[1693914944187,90.5362,19.564,19.552,7.978]
[1693914944390,55.0,19.563,19.552,7.978]
[1693914944687,62.974,19.563,19.552,7.978]
[1693914949290,62.974,19.563,19.549,25.78]
[1693914949482,62.974,19.563,19.552,7.978]
[1693914951998,7.975,19.56,19.552,7.978]
[1693914954603,2.92695677,19.559,19.552,7.978]
[1693914954905,7.975,19.56,19.552,7.978]
[1693914963298,10.77724303,19.562,19.552,7.978]
[1693914963500,55.0,19.561,19.552,7.978]
[1693914963798,7.975,19.562,19.552,7.978]
[1693914963999,2.78222151,19.561,19.552,7.978]
[1693914964196,7.975,19.562,19.552,7.978]
[1693914964698,98.5102,19.564,19.552,7.978]
[1693914964908,3.17454178,19.563,19.552,7.978]
[1693914965700,11.14854178,19.563,19.552,7.978]
[1693914967800,3.17454178,19.563,19.552,7.978]
[1693914970307,11.14854178,19.563,19.552,7.978]
[1693914970509,7.974,19.563,19.552,7.978]
[1693914971310,58.59706014,19.562,19.552,7.978]
[1693914973615,11.57106014,19.562,19.552,7.978]
[1693914976914,3.59706014,19.562,19.552,7.978]
[1693914977124,3.76424523,19.563,19.552,64.238]
[1693914977418,90.5362,19.564,19.552,64.238]
[1693914977617,3.36309661,19.566,19.552,64.238]
[1693914978007,11.33609661,19.566,19.552,64.238]
[1693914978919,3.36309661,19.566,19.552,64.238]
[1693914980323,3.36309661,19.566,19.553,55.0]
[1693914980623,3.36309661,19.566,19.556,33.746]
[1693914981013,4.00572672,19.567,19.556,33.746]
[1693914982024,4.00572672,19.568,19.556,33.746]
[1693914982209,90.0389,19.569,19.56,65.851]
[1693914982803,7.97,19.573,19.56,65.851]
[1693914983007,4.16009273,19.572,19.56,40.085]
[1693914983208,7.971,19.571,19.56,65.851]
[1693914986108,4.16009273,19.57,19.56,65.851]
[1693914986313,12.13109273,19.57,19.56,65.851]
[1693914986611,4.16009273,19.573,19.56,65.851]
[1693914986916,59.16009273,19.573,19.56,65.851]
[1693914987717,4.16009273,19.57,19.56,65.851]
[1693914988733,4.91410541,19.572,19.56,65.851]
[1693914988925,12.88410541,19.572,19.56,65.851]
[1693914989516,4.91410541,19.572,19.56,65.851]
[1693914989931,4.91410541,19.574,19.56,65.851]
[1693914990234,12.88310541,19.574,19.56,65.851]
[1693914994833,55.0,19.573,19.56,65.851]
[1693914995034,12.88410541,19.572,19.56,65.851]
[1693914996434,7.97,19.572,19.56,65.851]
[1693914999138,2.80761382,19.571,19.56,33.741]
[1693914999329,65.77861382,19.571,19.56,33.741]
[1693914999532,10.77861382,19.571,19.56,33.741]
[1693914999727,55.0,19.57,19.56,33.741]
[1693914999926,3.25139377,19.569,19.56,33.741]
[1693915000734,7.971,19.57,19.56,33.741]
[1693915001135,3.68133547,19.569,19.56,33.741]
[1693915001751,11.65233547,19.569,19.56,7.975]
[1693915002039,7.973,19.565,19.555,7.977]
[1693915002542,4.47389451,19.564,19.555,7.977]
[1693915002739,7.972,19.567,19.555,7.977]